[Event "*** Titled Tuesday 3|2 Blitz"]
[Site "Chess.com"]
[Date "2017.06.06"]
[Round "5"]
[White "Vamostodorecto"]
[Black "dolynachess"]
[Result "1-0"]
[WhiteElo "2323"]
[BlackElo "2305"]
[TimeControl "180+2"]
[EndTime "14:52:49 PDT"]
[Termination "Vamostodorecto won by checkmate"]

1. d4 {[%clk 0:02:56.6]} 1... Nf6 {[%clk 0:02:59.9]} 2. c4 {[%clk 0:02:56.1]}
2... c5 {[%clk 0:03:01.8]} 3. d5 {[%clk 0:02:56.5]} 3... b5 {[%clk 0:03:02.7]}
4. cxb5 {[%clk 0:02:56.6]} 4... a6 {[%clk 0:03:04.3]} 5. Nc3 {[%clk 0:02:57.9]}
5... axb5 {[%clk 0:03:04.4]} 6. e4 {[%clk 0:02:59.4]} 6... b4 {[%clk 0:03:05.4]}
7. Nb5 {[%clk 0:03:00.2]} 7... d6 {[%clk 0:03:06.3]} 8. Bc4 {[%clk 0:03:00.3]}
8... Na6 {[%clk 0:03:07.3]} 9. Qe2 {[%clk 0:02:56.9]} 9... g6 {[%clk 0:03:02.7]}
10. b3 {[%clk 0:02:56.8]} 10... Bg7 {[%clk 0:03:03.2]} 11. Bb2 {[%clk
0:02:58.4]} 11... O-O {[%clk 0:03:04.1]} 12. Nf3 {[%clk 0:02:59.6]} 12... Re8
{[%clk 0:03:04.3]} 13. O-O {[%clk 0:03:00]} 13... e6 {[%clk 0:02:56.5]} 14. dxe6
{[%clk 0:02:57.8]} 14... Bxe6 {[%clk 0:02:51.7]} 15. Rad1 {[%clk 0:02:35.5]}
15... Bxc4 {[%clk 0:02:47.6]} 16. Qxc4 {[%clk 0:02:37.4]} 16... Rxe4 {[%clk
0:02:31.9]} 17. Qc2 {[%clk 0:02:36.2]} 17... Re6 {[%clk 0:02:11]} 18. Ng5 {[%clk
0:02:35.6]} 18... Re7 {[%clk 0:02:09.3]} 19. Rxd6 {[%clk 0:02:33]} 19... Rd7
{[%clk 0:01:50.4]} 20. Qc4 {[%clk 0:02:01.3]} 20... Qe7 {[%clk 0:01:14.4]} 21.
Bxf6 {[%clk 0:01:50.7]} 21... Bxf6 {[%clk 0:01:14.1]} 22. Nxf7 {[%clk
0:01:52.2]} 22... Rxd6 {[%clk 0:01:06.8]} 23. Nfxd6+ {[%clk 0:01:54.1]} 23...
Kh8 {[%clk 0:01:05.3]} 24. g3 {[%clk 0:01:35.4]} 24... Rf8 {[%clk 0:00:58.6]}
25. Qe4 {[%clk 0:01:28]} 25... Nc7 {[%clk 0:00:40.3]} 26. Re1 {[%clk 0:01:01.2]}
26... Qxe4 {[%clk 0:00:27.4]} 27. Rxe4 {[%clk 0:01:00.2]} 27... Nxb5 {[%clk
0:00:21]} 28. Nxb5 {[%clk 0:01:02.1]} 28... Rd8 {[%clk 0:00:21.2]} 29. Re2
{[%clk 0:00:57.4]} 29... Kg7 {[%clk 0:00:20.8]} 30. Nc7 {[%clk 0:00:53.8]} 30...
Rd1+ {[%clk 0:00:20.1]} 31. Kg2 {[%clk 0:00:54.2]} 31... Kf7 {[%clk 0:00:22]}
32. f4 {[%clk 0:00:50.8]} 32... h5 {[%clk 0:00:22.4]} 33. Ne6 {[%clk 0:00:50.2]}
33... Rc1 {[%clk 0:00:19.7]} 34. Nc7 {[%clk 0:00:46.7]} 34... Bd4 {[%clk
0:00:19.7]} 35. Nb5 {[%clk 0:00:39.6]} 35... Bf6 {[%clk 0:00:17.7]} 36. Nd6+
{[%clk 0:00:39.3]} 36... Kf8 {[%clk 0:00:19]} 37. Nc4 {[%clk 0:00:39.5]} 37...
Kf7 {[%clk 0:00:19.3]} 38. Kf3 {[%clk 0:00:40.1]} 38... Bd4 {[%clk 0:00:18.3]}
39. Ke4 {[%clk 0:00:40.3]} 39... Ke6 {[%clk 0:00:19]} 40. Nb6 {[%clk 0:00:28.7]}
40... Rc3 {[%clk 0:00:19]} 41. Na4 {[%clk 0:00:21.1]} 41... Rc1 {[%clk
0:00:19.6]} 42. Kd3+ {[%clk 0:00:22.1]} 42... Kd5 {[%clk 0:00:20.5]} 43. Nb6+
{[%clk 0:00:21.4]} 43... Kc6 {[%clk 0:00:20.8]} 44. Nc4 {[%clk 0:00:23.2]} 44...
Rd1+ {[%clk 0:00:22.1]} 45. Rd2 {[%clk 0:00:23.9]} 45... Re1 {[%clk 0:00:22.9]}
46. Re2 {[%clk 0:00:24.6]} 46... Rd1+ {[%clk 0:00:24.4]} 47. Kc2 {[%clk
0:00:25.1]} 47... Rh1 {[%clk 0:00:23.8]} 48. Re6+ {[%clk 0:00:23.8]} 48... Kd5
{[%clk 0:00:24.9]} 49. Rxg6 {[%clk 0:00:23]} 49... Rxh2+ {[%clk 0:00:25.9]} 50.
Kd3 {[%clk 0:00:24.3]} 50... Rxa2 {[%clk 0:00:26.1]} 51. Rd6# {[%clk 0:00:23.5]}
1-0

[Event "*** Titled Tuesday 3|2 Blitz"]
[Site "Chess.com"]
[Date "2017.06.06"]
[Round "5"]
[White "Enzy63"]
[Black "Wolverine_master"]
[Result "0-1"]
[WhiteElo "2039"]
[BlackElo "1997"]
[TimeControl "180+2"]
[EndTime "14:52:54 PDT"]
[Termination "Wolverine_master won by resignation"]

1. d4 {[%clk 0:03:02]} 1... Nf6 {[%clk 0:02:59.6]} 2. Nf3 {[%clk 0:03:02.9]}
2... c5 {[%clk 0:03:01.1]} 3. d5 {[%clk 0:03:03.1]} 3... g6 {[%clk 0:03:02.5]}
4. Nc3 {[%clk 0:03:00.3]} 4... Bg7 {[%clk 0:03:02.5]} 5. e4 {[%clk 0:03:01.8]}
5... d6 {[%clk 0:03:03.9]} 6. Bb5+ {[%clk 0:03:01.8]} 6... Bd7 {[%clk
0:03:03.4]} 7. a4 {[%clk 0:03:03.3]} 7... O-O {[%clk 0:03:04.3]} 8. h3 {[%clk
0:03:02.2]} 8... Na6 {[%clk 0:03:04.5]} 9. O-O {[%clk 0:03:02.1]} 9... Nc7
{[%clk 0:03:05.7]} 10. Re1 {[%clk 0:02:41.4]} 10... a6 {[%clk 0:03:04.3]} 11.
Bxd7 {[%clk 0:02:09.9]} 11... Nxd7 {[%clk 0:03:03.5]} 12. Bf4 {[%clk 0:01:55.9]}
12... b5 {[%clk 0:02:56.5]} 13. e5 {[%clk 0:01:56.1]} 13... dxe5 {[%clk
0:02:53.7]} 14. Nxe5 {[%clk 0:01:55.6]} 14... Nxe5 {[%clk 0:02:54.5]} 15. Bxe5
{[%clk 0:01:56.5]} 15... b4 {[%clk 0:02:55.4]} 16. Bxg7 {[%clk 0:01:43.6]} 16...
Kxg7 {[%clk 0:02:53.9]} 17. Ne4 {[%clk 0:01:40.1]} 17... Qxd5 {[%clk 0:02:47.6]}
18. Qxd5 {[%clk 0:01:16.6]} 18... Nxd5 {[%clk 0:02:49.5]} 19. Nxc5 {[%clk
0:01:18.1]} 19... e6 {[%clk 0:02:46.2]} 20. Nd3 {[%clk 0:00:45.8]} 20... a5
{[%clk 0:02:42.6]} 21. Re2 {[%clk 0:00:23.6]} 21... Rac8 {[%clk 0:02:38.9]} 22.
g3 {[%clk 0:00:22.9]} 22... Rc7 {[%clk 0:02:36.3]} 23. Rd1 {[%clk 0:00:19.7]}
23... Rfc8 {[%clk 0:02:36.4]} 24. Rdd2 {[%clk 0:00:20.8]} 24... Nb6 {[%clk
0:02:31.3]} 25. b3 {[%clk 0:00:21.8]} 25... Nd5 {[%clk 0:02:20]} 26. Nb2 {[%clk
0:00:21]} 26... Nc3 {[%clk 0:01:54.8]} 27. Re1 {[%clk 0:00:21.3]} 27... Rc5
{[%clk 0:01:49.9]} 28. Nc4 {[%clk 0:00:21.8]} 28... Nd5 {[%clk 0:01:48.7]} 29.
Re5 {[%clk 0:00:14.8]} 29... Kf6 {[%clk 0:01:46.7]} 30. f4 {[%clk 0:00:14.3]}
30... h5 {[%clk 0:01:35.4]} 31. Kf2 {[%clk 0:00:14.2]} 31... Ke7 {[%clk
0:01:36.1]} 32. Kf3 {[%clk 0:00:14.2]} 32... f6 {[%clk 0:01:37.3]} 33. Re1
{[%clk 0:00:13.1]} 33... R8c6 {[%clk 0:01:35.9]} 34. Rde2 {[%clk 0:00:14]} 34...
Nb6 {[%clk 0:01:35.4]} 35. Nxb6 {[%clk 0:00:12.2]} 35... Rxb6 {[%clk 0:01:37.3]}
36. g4 {[%clk 0:00:13.1]} 36... Rc3+ {[%clk 0:01:37]} 37. Kg2 {[%clk 0:00:13.2]}
37... hxg4 {[%clk 0:01:36.8]} 38. hxg4 {[%clk 0:00:15.1]} 38... Rbc6 {[%clk
0:01:38.2]} 39. f5 {[%clk 0:00:16]} 39... gxf5 {[%clk 0:01:37.6]} 40. gxf5
{[%clk 0:00:17.2]} 40... e5 {[%clk 0:01:39.1]} 41. Rh1 {[%clk 0:00:18]} 41...
Rxc2 {[%clk 0:01:38.4]} 42. Rh7+ {[%clk 0:00:19.4]} 42... Kd6 {[%clk 0:01:38.8]}
43. Rxc2 {[%clk 0:00:19.2]} 43... Rxc2+ {[%clk 0:01:40.7]} 44. Kf3 {[%clk
0:00:20.6]} 44... Rc3+ {[%clk 0:01:41.7]} 45. Ke4 {[%clk 0:00:21.6]} 45... Rxb3
{[%clk 0:01:42.1]} 46. Rf7 {[%clk 0:00:23]} 46... Ra3 {[%clk 0:01:40.4]} 47.
Rxf6+ {[%clk 0:00:23.9]} 47... Ke7 {[%clk 0:01:40.2]} 48. Ra6 {[%clk 0:00:24.6]}
48... Rxa4 {[%clk 0:01:41.2]} 49. Kxe5 {[%clk 0:00:25.4]} 49... Ra1 {[%clk
0:01:42.7]} 50. Ra7+ {[%clk 0:00:26.3]} 50... Ke8 {[%clk 0:01:42.8]} 51. Ra8+
{[%clk 0:00:27.3]} 51... Ke7 {[%clk 0:01:43.4]} 52. Ra7+ {[%clk 0:00:28.4]}
52... Ke8 {[%clk 0:01:44.6]} 53. Ra8+ {[%clk 0:00:29.7]} 53... Kd7 {[%clk
0:01:46]} 54. Ra7+ {[%clk 0:00:30.8]} 54... Kc6 {[%clk 0:01:47]} 55. f6 {[%clk
0:00:31.5]} 55... Re1+ {[%clk 0:01:47.2]} 56. Kf5 {[%clk 0:00:31.3]} 56... Kb5
{[%clk 0:01:47.8]} 57. f7 {[%clk 0:00:30.4]} 57... Rf1+ {[%clk 0:01:49.1]} 58.
Ke6 {[%clk 0:00:30.9]} 58... b3 {[%clk 0:01:49.6]} 59. Rb7+ {[%clk 0:00:29]}
59... Kc4 {[%clk 0:01:47.1]} 60. Rc7+ {[%clk 0:00:30]} 60... Kb4 {[%clk
0:01:41.3]} 61. Rb7+ {[%clk 0:00:30.6]} 61... Ka3 {[%clk 0:01:42.2]} 62. Ke7
{[%clk 0:00:27.1]} 62... a4 {[%clk 0:01:39.2]} 63. Rb6 {[%clk 0:00:27.8]} 63...
Rxf7+ {[%clk 0:01:37.9]} 64. Kxf7 {[%clk 0:00:29]} 64... b2 {[%clk 0:01:39.4]}
65. Ke6 {[%clk 0:00:29.4]} 65... Ka2 {[%clk 0:01:40.3]} 66. Kd5 {[%clk
0:00:29.2]} 66... b1=Q {[%clk 0:01:35.9]} 67. Rxb1 {[%clk 0:00:29.2]} 67... Kxb1
{[%clk 0:01:37.8]} 68. Kc4 {[%clk 0:00:30.6]} 68... a3 {[%clk 0:01:39.2]} 69.
Kb3 {[%clk 0:00:31.7]} 69... a2 {[%clk 0:01:41.1]} 0-1

[Event "*** Titled Tuesday 3|2 Blitz"]
[Site "Chess.com"]
[Date "2017.06.06"]
[Round "5"]
[White "GMHess"]
[Black "Illingworth"]
[Result "1-0"]
[WhiteElo "2623"]
[BlackElo "2701"]
[TimeControl "180+2"]
[EndTime "14:53:06 PDT"]
[Termination "GMHess won by resignation"]

1. d4 {[%clk 0:03:02]} 1... Nf6 {[%clk 0:02:59.8]} 2. c4 {[%clk 0:03:02.7]} 2...
e6 {[%clk 0:03:00.9]} 3. Nc3 {[%clk 0:03:03.2]} 3... Bb4 {[%clk 0:03:00.1]} 4.
Qc2 {[%clk 0:03:04.1]} 4... O-O {[%clk 0:02:59.7]} 5. a3 {[%clk 0:03:05.1]} 5...
Bxc3+ {[%clk 0:03:00.6]} 6. Qxc3 {[%clk 0:03:07]} 6... d5 {[%clk 0:03:02]} 7.
Nf3 {[%clk 0:03:05.1]} 7... dxc4 {[%clk 0:03:02.5]} 8. Qxc4 {[%clk 0:03:06.6]}
8... b6 {[%clk 0:03:03.6]} 9. Bg5 {[%clk 0:03:07.2]} 9... Ba6 {[%clk 0:03:04.3]}
10. Qa4 {[%clk 0:03:08]} 10... Qd7 {[%clk 0:03:01.7]} 11. Qc2 {[%clk 0:03:08.3]}
11... c5 {[%clk 0:02:58.7]} 12. Bxf6 {[%clk 0:02:47.5]} 12... gxf6 {[%clk
0:02:58.2]} 13. dxc5 {[%clk 0:02:46.8]} 13... Rc8 {[%clk 0:02:58.3]} 14. Qe4
{[%clk 0:02:20.8]} 14... Qb5 {[%clk 0:02:51.3]} 15. b4 {[%clk 0:02:00.9]} 15...
bxc5 {[%clk 0:02:35.8]} 16. e3 {[%clk 0:01:55.5]} 16... Qb6 {[%clk 0:02:25.4]}
17. Bxa6 {[%clk 0:01:15.4]} 17... Nxa6 {[%clk 0:02:27.3]} 18. O-O {[%clk
0:01:15.7]} 18... cxb4 {[%clk 0:02:26.9]} 19. axb4 {[%clk 0:00:57]} 19... Nxb4
{[%clk 0:02:28.8]} 20. Qg4+ {[%clk 0:00:45.6]} 20... Kf8 {[%clk 0:02:28.4]} 21.
Qh4 {[%clk 0:00:47.5]} 21... Kg7 {[%clk 0:02:28.9]} 22. Qg4+ {[%clk 0:00:45.3]}
22... Kf8 {[%clk 0:02:29.5]} 23. Qh4 {[%clk 0:00:46.8]} 23... Ke7 {[%clk
0:02:30.1]} 24. e4 {[%clk 0:00:38.5]} 24... Rc4 {[%clk 0:02:14.4]} 25. Qxh7
{[%clk 0:00:30.1]} 25... Nd3 {[%clk 0:01:44.9]} 26. Rab1 {[%clk 0:00:15.7]}
26... Qc6 {[%clk 0:01:44.2]} 27. Nd2 {[%clk 0:00:11.5]} 27... Rc2 {[%clk
0:01:44.8]} 28. Nf3 {[%clk 0:00:11.9]} 28... Rc4 {[%clk 0:01:31.2]} 29. Rbd1
{[%clk 0:00:11.6]} 29... Nf4 {[%clk 0:01:13.9]} 30. e5 {[%clk 0:00:11.4]} 30...
Ng6 {[%clk 0:01:14.3]} 31. exf6+ {[%clk 0:00:10]} 31... Kxf6 {[%clk 0:01:16.2]}
32. Qh6 {[%clk 0:00:09.4]} 32... Rg4 {[%clk 0:01:15.1]} 33. h3 {[%clk
0:00:08.4]} 33... Re4 {[%clk 0:00:37.8]} 34. Ng5 {[%clk 0:00:05.5]} 34... Re2
{[%clk 0:00:28.7]} 35. Nh7+ {[%clk 0:00:06.1]} 35... Ke7 {[%clk 0:00:27.9]} 36.
Qg5+ {[%clk 0:00:07.5]} 36... Ke8 {[%clk 0:00:28.9]} 37. Nf6+ {[%clk 0:00:08.4]}
37... Kf8 {[%clk 0:00:30]} 38. Rd7 {[%clk 0:00:08.6]} 38... Kg7 {[%clk
0:00:22.3]} 39. Nh5+ {[%clk 0:00:09.3]} 39... Kg8 {[%clk 0:00:17.3]} 40. Rfd1
{[%clk 0:00:08.9]} 40... Rf8 {[%clk 0:00:13.2]} 41. Nf6+ {[%clk 0:00:07]} 41...
Kg7 {[%clk 0:00:13.6]} 42. Nh5+ {[%clk 0:00:08.2]} 42... Kg8 {[%clk 0:00:14.7]}
43. Qf6 {[%clk 0:00:06.7]} 1-0

[Event "*** Titled Tuesday 3|2 Blitz"]
[Site "Chess.com"]
[Date "2017.06.06"]
[Round "5"]
[White "Spinaltap"]
[Black "Grebeniuk-S"]
[Result "1/2-1/2"]
[WhiteElo "2503"]
[BlackElo "2432"]
[TimeControl "180+2"]
[EndTime "14:53:07 PDT"]
[Termination "Game drawn - insufficient material"]

1. d4 {[%clk 0:03:02]} 1... f5 {[%clk 0:03:00.1]} 2. Nf3 {[%clk 0:03:01.9]} 2...
Nf6 {[%clk 0:03:01.3]} 3. g3 {[%clk 0:03:02.8]} 3... g6 {[%clk 0:03:02.3]} 4.
Bg2 {[%clk 0:03:03.7]} 4... d6 {[%clk 0:03:03.6]} 5. O-O {[%clk 0:03:04.4]} 5...
Bg7 {[%clk 0:03:04.9]} 6. c4 {[%clk 0:03:05.2]} 6... O-O {[%clk 0:03:06.2]} 7.
Nc3 {[%clk 0:03:05.9]} 7... Qe8 {[%clk 0:03:06.6]} 8. d5 {[%clk 0:03:04.8]} 8...
a5 {[%clk 0:03:07.1]} 9. Nd4 {[%clk 0:02:56.3]} 9... Na6 {[%clk 0:03:07.6]} 10.
Rb1 {[%clk 0:02:56]} 10... Bd7 {[%clk 0:03:06.4]} 11. Bg5 {[%clk 0:02:52.9]}
11... h6 {[%clk 0:03:06.5]} 12. Bxf6 {[%clk 0:02:53.8]} 12... Bxf6 {[%clk
0:03:08.4]} 13. e4 {[%clk 0:02:52]} 13... f4 {[%clk 0:02:57.3]} 14. Ne6 {[%clk
0:02:45.7]} 14... Bxe6 {[%clk 0:02:55.5]} 15. dxe6 {[%clk 0:02:46.8]} 15... Be5
{[%clk 0:02:44.3]} 16. Nd5 {[%clk 0:02:37.3]} 16... g5 {[%clk 0:02:28.2]} 17.
Bh3 {[%clk 0:02:30]} 17... c6 {[%clk 0:02:09.3]} 18. Nb6 {[%clk 0:02:28.1]}
18... Nc5 {[%clk 0:02:10.3]} 19. Nxa8 {[%clk 0:02:24.5]} 19... Qxa8 {[%clk
0:02:12.2]} 20. Bf5 {[%clk 0:02:25.1]} 20... Rf6 {[%clk 0:01:57.2]} 21. Qg4
{[%clk 0:02:22.5]} 21... Kh8 {[%clk 0:01:39.8]} 22. h4 {[%clk 0:02:17.8]} 22...
Qg8 {[%clk 0:01:30.5]} 23. hxg5 {[%clk 0:02:15.6]} 23... Qxg5 {[%clk 0:01:32.4]}
24. Qxg5 {[%clk 0:02:10.8]} 24... hxg5 {[%clk 0:01:34.3]} 25. b4 {[%clk
0:02:02]} 25... axb4 {[%clk 0:01:32.3]} 26. Rxb4 {[%clk 0:02:02.9]} 26... fxg3
{[%clk 0:01:32.3]} 27. fxg3 {[%clk 0:01:55.7]} 27... Bxg3 {[%clk 0:01:33.1]} 28.
Kg2 {[%clk 0:01:56.6]} 28... Bh4 {[%clk 0:01:16.6]} 29. Rd1 {[%clk 0:01:51.3]}
29... Rf8 {[%clk 0:01:02.7]} 30. a4 {[%clk 0:01:42.6]} 30... Kg7 {[%clk
0:01:01.7]} 31. a5 {[%clk 0:01:41.1]} 31... Kf6 {[%clk 0:01:00.8]} 32. Rb6
{[%clk 0:01:33.9]} 32... Ra8 {[%clk 0:00:57.6]} 33. Ra1 {[%clk 0:01:34.3]} 33...
Ke5 {[%clk 0:00:58.4]} 34. a6 {[%clk 0:01:31.1]} 34... Rxa6 {[%clk 0:00:49.2]}
35. Raxa6 {[%clk 0:01:31.2]} 35... bxa6 {[%clk 0:00:51.1]} 36. Rxc6 {[%clk
0:01:31.6]} 36... Nxe4 {[%clk 0:00:38.7]} 37. Bxe4 {[%clk 0:01:31.2]} 37... Kxe4
{[%clk 0:00:40.6]} 38. Rxa6 {[%clk 0:01:30.7]} 38... Ke5 {[%clk 0:00:41.1]} 39.
Kf3 {[%clk 0:01:31]} 39... Be1 {[%clk 0:00:25.1]} 40. Ra7 {[%clk 0:01:21.2]}
40... Kxe6 {[%clk 0:00:24.8]} 41. Ke4 {[%clk 0:01:22.1]} 41... Bb4 {[%clk
0:00:25.2]} 42. Ra2 {[%clk 0:01:17]} 42... Bc5 {[%clk 0:00:24.1]} 43. Rg2 {[%clk
0:01:17.4]} 43... Kf6 {[%clk 0:00:24.9]} 44. Rh2 {[%clk 0:01:15.8]} 44... Kg6
{[%clk 0:00:21.7]} 45. Rh1 {[%clk 0:01:07.4]} 45... e6 {[%clk 0:00:22.3]} 46.
Rh8 {[%clk 0:01:06.8]} 46... Kf6 {[%clk 0:00:19]} 47. Rh6+ {[%clk 0:01:06.8]}
47... Kf7 {[%clk 0:00:18.8]} 48. Kf3 {[%clk 0:01:05.9]} 48... Bd4 {[%clk
0:00:14.4]} 49. Kg4 {[%clk 0:01:06.4]} 49... Bf6 {[%clk 0:00:15.1]} 50. Rh7+
{[%clk 0:01:06.9]} 50... Kg6 {[%clk 0:00:11.4]} 51. Rd7 {[%clk 0:01:07.5]} 51...
Be5 {[%clk 0:00:12.6]} 52. Rd8 {[%clk 0:01:05.2]} 52... Bf4 {[%clk 0:00:13.6]}
53. Re8 {[%clk 0:01:03.1]} 53... Kf6 {[%clk 0:00:14.7]} 54. Rh8 {[%clk
0:00:56.1]} 54... Ke5 {[%clk 0:00:15.5]} 55. Rh6 {[%clk 0:00:56.9]} 55... Kd4
{[%clk 0:00:16]} 56. Rxe6 {[%clk 0:00:57.4]} 56... Kxc4 {[%clk 0:00:17.5]} 57.
Rxd6 {[%clk 0:00:58]} 57... Bxd6 {[%clk 0:00:14.7]} 58. Kxg5 {[%clk 0:00:59.2]}
1/2-1/2

[Event "*** Titled Tuesday 3|2 Blitz"]
[Site "Chess.com"]
[Date "2017.06.06"]
[Round "5"]
[White "saraswathii"]
[Black "Blitzstream"]
[Result "1/2-1/2"]
[WhiteElo "2265"]
[BlackElo "2497"]
[TimeControl "180+2"]
[EndTime "14:53:07 PDT"]
[Termination "Game drawn by repetition"]

1. e4 {[%clk 0:03:02]} 1... g6 {[%clk 0:02:55.2]} 2. d3 {[%clk 0:03:02.7]} 2...
Bg7 {[%clk 0:02:54.1]} 3. Nf3 {[%clk 0:03:02.4]} 3... b6 {[%clk 0:02:54.3]} 4.
g3 {[%clk 0:03:02.8]} 4... Bb7 {[%clk 0:02:54.7]} 5. Bg2 {[%clk 0:03:02.4]} 5...
e6 {[%clk 0:02:55.3]} 6. O-O {[%clk 0:03:02.8]} 6... Ne7 {[%clk 0:02:55.7]} 7.
Qe2 {[%clk 0:03:03]} 7... d6 {[%clk 0:02:55.8]} 8. c3 {[%clk 0:02:59.9]} 8...
Nd7 {[%clk 0:02:55.4]} 9. d4 {[%clk 0:02:43.6]} 9... a6 {[%clk 0:02:49.3]} 10.
e5 {[%clk 0:02:34.3]} 10... d5 {[%clk 0:02:27.4]} 11. Nbd2 {[%clk 0:02:25]}
11... h6 {[%clk 0:02:25]} 12. h4 {[%clk 0:02:24]} 12... c5 {[%clk 0:02:24]} 13.
Re1 {[%clk 0:02:24.4]} 13... Nf5 {[%clk 0:02:16.4]} 14. Nf1 {[%clk 0:02:22.4]}
14... Nb8 {[%clk 0:02:10.9]} 15. Bf4 {[%clk 0:02:17.1]} 15... Nc6 {[%clk
0:02:10.7]} 16. Rad1 {[%clk 0:02:17.2]} 16... Rc8 {[%clk 0:02:03.1]} 17. N1h2
{[%clk 0:02:15.2]} 17... Qe7 {[%clk 0:01:36.2]} 18. a3 {[%clk 0:02:09.4]} 18...
cxd4 {[%clk 0:01:26.9]} 19. cxd4 {[%clk 0:01:57.4]} 19... Na5 {[%clk 0:01:24.7]}
20. Ng4 {[%clk 0:01:55]} 20... Nc4 {[%clk 0:01:22.8]} 21. Nf6+ {[%clk
0:01:43.6]} 21... Kf8 {[%clk 0:01:18.9]} 22. g4 {[%clk 0:01:40.9]} 22... Nxh4
{[%clk 0:01:14.8]} 23. g5 {[%clk 0:01:17.3]} 23... Nxf3+ {[%clk 0:01:09.5]} 24.
Bxf3 {[%clk 0:01:15.6]} 24... Qd8 {[%clk 0:00:32.5]} 25. Rc1 {[%clk 0:00:57.4]}
25... b5 {[%clk 0:00:21.6]} 26. Rc2 {[%clk 0:00:45.1]} 26... Nb6 {[%clk
0:00:21.7]} 27. Rec1 {[%clk 0:00:45]} 27... Rxc2 {[%clk 0:00:21.4]} 28. Qxc2
{[%clk 0:00:45.9]} 28... Nc4 {[%clk 0:00:14.2]} 29. b3 {[%clk 0:00:43.6]} 29...
hxg5 {[%clk 0:00:08.5]} 30. Bxg5 {[%clk 0:00:43.4]} 30... Qa5 {[%clk 0:00:09.7]}
31. bxc4 {[%clk 0:00:42.5]} 31... Qxa3 {[%clk 0:00:10.9]} 32. Bg2 {[%clk
0:00:34.6]} 32... b4 {[%clk 0:00:12.2]} 33. cxd5 {[%clk 0:00:34.3]} 33... b3
{[%clk 0:00:13.2]} 34. Qc7 {[%clk 0:00:29.4]} 34... Bxf6 {[%clk 0:00:06.5]} 35.
Bxf6 {[%clk 0:00:25.5]} 35... Bc6 {[%clk 0:00:07.6]} 36. dxc6 {[%clk 0:00:21.3]}
36... Qxc1+ {[%clk 0:00:08.3]} 37. Bf1 {[%clk 0:00:21.7]} 37... Rh1+ {[%clk
0:00:09.7]} 38. Kxh1 {[%clk 0:00:20]} 38... Qxf1+ {[%clk 0:00:11.6]} 39. Kh2
{[%clk 0:00:21.3]} 39... Qxf2+ {[%clk 0:00:13.3]} 40. Kh3 {[%clk 0:00:22.6]}
40... Qf3+ {[%clk 0:00:14.7]} 41. Kh4 {[%clk 0:00:24]} 41... Qf4+ {[%clk
0:00:16.1]} 42. Kh3 {[%clk 0:00:25.3]} 42... Qf3+ {[%clk 0:00:17.5]} 43. Kh2
{[%clk 0:00:26.5]} 43... Qf2+ {[%clk 0:00:18.9]} 44. Kh3 {[%clk 0:00:27.9]}
44... Qf3+ {[%clk 0:00:20.1]} 45. Kh4 {[%clk 0:00:29]} 45... Qf4+ {[%clk
0:00:20.6]} 46. Kh3 {[%clk 0:00:28.8]} 46... Qf3+ {[%clk 0:00:21.7]} 47. Kh2
{[%clk 0:00:29.3]} 47... Qf2+ {[%clk 0:00:22]} 48. Kh3 {[%clk 0:00:30.5]} 48...
Qf3+ {[%clk 0:00:18.9]} 1/2-1/2

[Event "*** Titled Tuesday 3|2 Blitz"]
[Site "Chess.com"]
[Date "2017.06.06"]
[Round "5"]
[White "stefanodinn"]
[Black "ANLex1963"]
[Result "1-0"]
[WhiteElo "2265"]
[BlackElo "2193"]
[TimeControl "180+2"]
[EndTime "14:53:14 PDT"]
[Termination "stefanodinn won by resignation"]

1. Nf3 {[%clk 0:03:02]} 1... Nf6 {[%clk 0:02:58.4]} 2. g3 {[%clk 0:03:00.3]}
2... c5 {[%clk 0:02:57.5]} 3. Bg2 {[%clk 0:03:01]} 3... d5 {[%clk 0:02:57.7]} 4.
O-O {[%clk 0:03:01.3]} 4... Nc6 {[%clk 0:02:57.8]} 5. d4 {[%clk 0:03:02.1]} 5...
e6 {[%clk 0:02:52.2]} 6. c4 {[%clk 0:03:00.8]} 6... Be7 {[%clk 0:02:50.3]} 7.
cxd5 {[%clk 0:02:37]} 7... exd5 {[%clk 0:02:50.2]} 8. Nc3 {[%clk 0:02:35.9]}
8... O-O {[%clk 0:02:47.7]} 9. dxc5 {[%clk 0:02:34.7]} 9... Bxc5 {[%clk
0:02:46.7]} 10. b3 {[%clk 0:02:35.7]} 10... Be6 {[%clk 0:02:42.6]} 11. Bb2
{[%clk 0:02:36.1]} 11... a6 {[%clk 0:02:39.7]} 12. Na4 {[%clk 0:02:34.1]} 12...
Ba7 {[%clk 0:02:39]} 13. Nd4 {[%clk 0:02:26.5]} 13... Rc8 {[%clk 0:02:34.6]} 14.
e3 {[%clk 0:02:19.6]} 14... Qe7 {[%clk 0:02:11.9]} 15. Rc1 {[%clk 0:01:45.8]}
15... Nxd4 {[%clk 0:02:03.4]} 16. Bxd4 {[%clk 0:01:39.7]} 16... Rxc1 {[%clk
0:01:59.7]} 17. Qxc1 {[%clk 0:01:40]} 17... Bxd4 {[%clk 0:01:59.7]} 18. exd4
{[%clk 0:01:40.2]} 18... Rc8 {[%clk 0:01:58.9]} 19. Qd2 {[%clk 0:01:40.4]} 19...
Qa3 {[%clk 0:01:57.7]} 20. Nc5 {[%clk 0:01:33.9]} 20... b6 {[%clk 0:01:41.4]}
21. Nxe6 {[%clk 0:01:33]} 21... fxe6 {[%clk 0:01:42.3]} 22. Qe2 {[%clk
0:01:24.3]} 22... Rc6 {[%clk 0:01:38.8]} 23. Bh3 {[%clk 0:01:19.4]} 23... Kf7
{[%clk 0:01:31.6]} 24. Re1 {[%clk 0:01:20]} 24... Ne4 {[%clk 0:01:21.4]} 25.
Qh5+ {[%clk 0:01:03.3]} 25... Kg8 {[%clk 0:01:21.1]} 26. Qe8+ {[%clk 0:00:57]}
26... Qf8 {[%clk 0:01:18.4]} 27. Bxe6+ {[%clk 0:00:53.6]} 27... Rxe6 {[%clk
0:01:18]} 28. Qxe6+ {[%clk 0:00:54.4]} 28... Kh8 {[%clk 0:01:18.6]} 29. Re2
{[%clk 0:00:44.7]} 29... h6 {[%clk 0:01:12.9]} 30. Qxd5 {[%clk 0:00:41.6]} 30...
Nc3 {[%clk 0:01:13]} 31. Qe5 {[%clk 0:00:36.2]} 31... Nxe2+ {[%clk 0:01:10.5]}
32. Qxe2 {[%clk 0:00:36.8]} 32... Qf5 {[%clk 0:01:03.6]} 33. h4 {[%clk
0:00:31.7]} 33... b5 {[%clk 0:01:00.9]} 34. Qd2 {[%clk 0:00:24.2]} 34... Qd5
{[%clk 0:00:58.6]} 35. Qf4 {[%clk 0:00:22.5]} 35... Qc6 {[%clk 0:00:48.2]} 36.
Qf8+ {[%clk 0:00:20.2]} 36... Kh7 {[%clk 0:00:49]} 37. Qf5+ {[%clk 0:00:21.7]}
37... Kg8 {[%clk 0:00:47.1]} 38. d5 {[%clk 0:00:21.5]} 38... Qc1+ {[%clk
0:00:46.2]} 39. Kg2 {[%clk 0:00:21.4]} 39... Qd2 {[%clk 0:00:43]} 40. Qe6+
{[%clk 0:00:21.3]} 40... Kh7 {[%clk 0:00:42.9]} 41. d6 {[%clk 0:00:22.7]} 41...
b4 {[%clk 0:00:36]} 42. d7 {[%clk 0:00:19]} 42... a5 {[%clk 0:00:34.7]} 43. h5
{[%clk 0:00:18.2]} 43... Qd4 {[%clk 0:00:26.4]} 44. Qg6+ {[%clk 0:00:17.4]} 1-0